fUSD/lending_fUSD_20240424
["ID","MTS","AMOUNT","RATE_DAILY","PERIOD"]
[323403056,1713971467075,-500.0,0.00011506,2]
[323403057,1713971467084,-500.0,0.00011506,2]
[323403058,1713971467094,-500.0,0.00011506,2]
[323403059,1713971467104,-500.0,0.00011506,2]
[323403060,1713971467113,-6983.95,0.00011506,2]
[323403061,1713971467122,-684.58,0.00011506,2]
[323403062,1713971467132,-500.0,0.00011506,2]
[323403063,1713971467141,-500.0,0.00011506,2]
[323403064,1713971467151,-500.0,0.00011506,2]
[323403065,1713971467161,-5260.46,0.00011506,2]
[323403066,1713971467170,-500.0,0.00011506,2]
[323403067,1713971467180,-500.0,0.00011506,2]
[323403068,1713971467189,-500.0,0.00011506,2]
[323403069,1713971467198,-500.0,0.00011506,2]
[323403070,1713971467208,-500.0,0.00011506,2]
[323403071,1713971467217,-500.0,0.00011506,2]
[323403072,1713971467226,-500.0,0.00011506,2]
[323403073,1713971467236,-500.0,0.00011506,2]
[323403074,1713971467245,-1402.14,0.00011506,2]
[323403075,1713971467255,-3704.19,0.00011506,2]
[323403076,1713971467265,-5398.19,0.00011506,2]
[323403077,1713971467276,-430.94527427,0.00011506,2]
[323403078,1713971467285,-16232.98,0.00011506,2]
[323403079,1713971467295,-500.0,0.00011506,2]
[323403080,1713971467305,-500.0,0.00011506,2]
[323403081,1713971467315,-538.93,0.00011506,2]
[323403082,1713971467327,-500.0,0.00011506,2]
[323403083,1713971467337,-500.0,0.00011506,2]
[323403084,1713971467347,-500.0,0.00011506,2]
[323403085,1713971467356,-9207.42,0.00011506,2]
[323403086,1713971467367,-500.0,0.00011506,2]
[323403087,1713971467376,-500.0,0.00011506,2]
[323403088,1713971467385,-547.36,0.00011506,2]
[323403089,1713971467395,-500.0,0.00011506,2]
[323403090,1713971467407,-5109.87,0.00011506,2]
[323403091,1713971467416,-13720.59,0.00011506,2]
[323403092,1713971467425,-500.0,0.00011506,2]
[323403093,1713971467435,-937.55,0.00011506,2]
[323403094,1713971467444,-6048.32,0.00011506,2]
[323403095,1713971467454,-500.0,0.00011506,2]
[323403096,1713971467463,-500.0,0.00011506,2]
[323403097,1713971467472,-500.0,0.00011506,2]
[323403098,1713971467482,-500.0,0.00011506,2]
[323403099,1713971467491,-500.0,0.00011506,2]
[323403100,1713971467501,-500.0,0.00011506,2]
[323403101,1713971467511,-1598.35,0.00011506,2]
[323403102,1713971467522,-500.0,0.00011506,2]
[323403103,1713971467532,-500.0,0.00011506,2]
[323403104,1713971467541,-1000.0,0.00011575,2]
[323403105,1713971467550,-5404.04345652,0.00011614,2]
[323403106,1713971467560,-2706.0,0.00011761,2]
[323403107,1713971467570,-5894.0,0.00011761,2]
[323403108,1713971467579,-35612.209,0.00011761,2]
[323403109,1713971467589,-5731.0,0.00011761,2]
[323403110,1713971467599,-859.5,0.00011761,2]
[323403111,1713971467609,-5404.04345652,0.00011775,2]
[323403112,1713971467618,-254.11589084,0.00011778,2]
[323403113,1713971467628,-268.38896678,0.00011778,2]
[323403114,1713971467637,-171.10489216,0.00011778,2]
[323403115,1713971467647,-3796.6859247,0.00011778,2]
[323403116,1713971467656,-1297.79891384,0.00011778,2]
[323403117,1713971467666,-156.44452941,0.00011778,2]
[323403118,1713971467675,-156.17458479,0.00011778,2]
[323403119,1713971467685,-683.13738738,0.00011778,2]
[323403120,1713971467694,-4348.49,0.00011778,2]
[323403121,1713971467704,-5347.72,0.00011778,2]
[323403122,1713971467713,-15810.62,0.00011778,2]
[323403123,1713971467722,-9139.58,0.00011778,2]
[323403124,1713971467731,-5784.5,0.00011778,2]
[323403125,1713971467741,-970.41,0.00011778,2]
[323403126,1713971467751,-4757.89,0.00011778,2]
[323403127,1713971467760,-843.23,0.00011778,2]
[323403128,1713971467771,-7178.12,0.00011778,2]
[323403129,1713971467780,-1302.1,0.00011778,2]
[323403130,1713971467789,-876.38,0.00011778,2]
[323403131,1713971467798,-3767.06,0.00011778,2]
[323403132,1713971467807,-500.0,0.00011778,2]
[323403133,1713971467816,-6249.85,0.00011778,2]
[323403134,1713971467826,-4729.55,0.00011778,2]
[323403135,1713971467835,-7690.41,0.00011778,2]
[323403136,1713971467845,-4370.07,0.00011778,2]
[323403137,1713971467854,-3925.91,0.00011778,2]
[323403138,1713971467863,-6389.34,0.00011778,2]
[323403139,1713971467873,-1806.16,0.00011778,2]
[323403140,1713971467882,-7632.03,0.00011778,2]
[323403141,1713971467892,-15067.8,0.00011778,2]
[323403142,1713971467902,-2615.85,0.00011778,2]
[323403143,1713971467911,-20096.18,0.00011778,2]
[323403144,1713971467921,-8210.15,0.00011778,2]
[323403145,1713971467930,-6711.82,0.00011778,2]
[323403146,1713971467940,-15655.38,0.00011778,2]
[323403147,1713971467950,-3758.87,0.00011778,2]
[323403148,1713971467959,-8286.69,0.00011778,2]
[323403149,1713971467969,-5569.95,0.00011778,2]
[323403150,1713971467978,-11483.13,0.00011778,2]
[323403151,1713971467987,-15875.61,0.00011778,2]
[323403152,1713971467997,-6030.73,0.00011778,2]
[323403153,1713971468006,-4130.43,0.00011778,2]
[323403154,1713971468015,-558.46,0.00011778,2]
[323403155,1713971468026,-7202.47,0.00011778,2]
[323403156,1713971468035,-500.0,0.00011779,2]
[323403157,1713971468045,-500.0,0.00011779,2]
[323403158,1713971468055,-500.0,0.00011779,2]
[323403159,1713971468064,-217.39610887,0.00011779,2]
[323403160,1713971468074,-500.0,0.00011779,2]
[323403161,1713971468083,-500.0,0.00011779,2]
[323403162,1713971468093,-500.0,0.00011779,2]
[323403163,1713971468102,-500.0,0.00011779,2]
[323403164,1713971468111,-500.0,0.00011779,2]
[323403165,1713971468122,-500.0,0.00011779,2]
[323403166,1713971468131,-500.0,0.00011779,2]
[323403167,1713971468141,-500.0,0.00011779,2]
[323403168,1713971468150,-500.0,0.00011779,2]
[323403169,1713971468159,-500.0,0.00011779,2]
[323403170,1713971468169,-500.0,0.00011779,2]
[323403171,1713971468178,-500.0,0.00011779,2]
[323403172,1713971468187,-500.0,0.00011779,2]
[323403173,1713971468197,-500.0,0.00011779,2]
[323403174,1713971468206,-500.0,0.00011779,2]
[323403175,1713971468216,-500.0,0.00011779,2]
[323403176,1713971468227,-500.0,0.00011779,2]
[323403177,1713971468236,-505.41210988,0.00011779,2]
[323403178,1713971468246,-500.0,0.00011779,2]
[323403179,1713971468255,-500.0,0.00011779,2]
[323403180,1713971468265,-500.0,0.00011779,2]
[323403181,1713971468276,-500.0,0.00011779,2]
[323403182,1713971468286,-500.0,0.00011779,2]
[323403183,1713971468297,-500.0,0.00011779,2]
[323403184,1713971468306,-500.0,0.00011779,2]
[323403185,1713971468318,-500.0,0.00011779,2]
[323403186,1713971468328,-500.0,0.00011779,2]
[323403187,1713971468339,-500.0,0.00011779,2]
[323403188,1713971468349,-500.0,0.00011779,2]
[323403189,1713971468360,-311.42,0.00011779,2]
[323403190,1713971468370,-500.0,0.00011779,2]
[323403191,1713971468379,-500.0,0.00011779,2]
[323403192,1713971468389,-256.98,0.00011779,2]
[323403193,1713971468402,-500.0,0.00011779,2]
[323403194,1713971468412,-500.0,0.00011779,2]
[323403195,1713971468422,-500.0,0.00011779,2]
[323403196,1713971468432,-322.86,0.00011779,2]
[323403197,1713971468442,-500.0,0.00011779,2]
[323403198,1713971468451,-500.0,0.00011779,2]
[323403199,1713971468461,-531.4,0.00011779,2]
[323403200,1713971468471,-500.0,0.00011779,2]
[323403201,1713971468481,-500.0,0.00011779,2]
[323403202,1713971468491,-599.96,0.00011779,2]
[323403203,1713971468500,-500.0,0.00011779,2]
[323403204,1713971468510,-500.0,0.00011779,2]
[323403205,1713971468524,-425.8,0.00011779,2]
[323403206,1713971468534,-433.36,0.00011779,2]
[323403207,1713971468544,-347.34,0.00011779,2]
[323403208,1713971468553,-500.0,0.00011779,2]
[323403209,1713971468563,-500.0,0.00011779,2]
[323403210,1713971468573,-500.0,0.00011779,2]
[323403211,1713971468583,-500.0,0.00011779,2]
[323403212,1713971468592,-500.0,0.00011779,2]
[323403213,1713971468602,-500.0,0.00011779,2]
[323403214,1713971468613,-500.0,0.00011779,2]
[323403215,1713971468625,-500.0,0.00011779,2]
[323403216,1713971468635,-489.67628374,0.00011779,2]
[323403217,1713971468645,-523.37,0.00011779,2]
[323403218,1713971468655,-547.46,0.00011779,2]
[323403219,1713971468665,-500.0,0.00011779,2]
[323403220,1713971468674,-184.08,0.00011779,2]
[323403221,1713971468685,-500.0,0.00011779,2]
[323403222,1713971468695,-500.0,0.00011779,2]
[323403223,1713971468705,-306.44,0.00011779,2]
[323403224,1713971468715,-500.0,0.00011779,2]
[323403225,1713971468725,-500.0,0.00011779,2]
[323403226,1713971468734,-335.6,0.00011779,2]
[323403227,1713971468745,-500.0,0.00011779,2]
[323403228,1713971468755,-500.0,0.00011779,2]
[323403229,1713971468764,-500.0,0.00011779,2]
[323403230,1713971468777,-500.0,0.00011779,2]
[323403231,1713971468786,-500.0,0.00011779,2]
[323403232,1713971468796,-500.0,0.00011779,2]
[323403233,1713971468805,-539.68832243,0.00011779,2]
[323403234,1713971468815,-500.0,0.00011779,2]
[323403235,1713971468825,-500.0,0.00011779,2]
[323403236,1713971468835,-500.0,0.00011779,2]
[323403237,1713971468844,-500.0,0.00011779,2]
[323403238,1713971468854,-500.0,0.00011779,2]
[323403239,1713971468863,-500.0,0.00011779,2]
[323403240,1713971468873,-500.0,0.00011779,2]
[323403241,1713971468882,-630.7,0.00011779,2]
[323403242,1713971468892,-500.0,0.00011779,2]
[323403243,1713971468902,-500.0,0.00011779,2]
[323403244,1713971468912,-528.88,0.00011779,2]
[323403245,1713971468921,-500.0,0.00011779,2]
[323403246,1713971468931,-500.0,0.00011779,2]
[323403247,1713971468941,-500.0,0.00011779,2]
[323403248,1713971468950,-574.28,0.00011779,2]
[323403249,1713971468960,-500.0,0.00011779,2]
[323403250,1713971468970,-500.0,0.00011779,2]
[323403251,1713971468979,-500.0,0.00011779,2]
[323403252,1713971468989,-500.0,0.00011779,2]
[323403253,1713971468999,-399.57604941,0.00011779,2]
[323403254,1713971469009,-500.0,0.00011779,2]
[323403255,1713971469022,-500.0,0.00011779,2]
[323403256,1713971469036,-500.0,0.00011779,2]
[323403257,1713971469046,-500.0,0.00011779,2]
[323403258,1713971469057,-500.0,0.00011779,2]
[323403259,1713971469066,-500.0,0.00011779,2]
[323403260,1713971469076,-500.0,0.00011779,2]
[323403261,1713971469086,-500.0,0.00011779,2]
[323403262,1713971469096,-840.09,0.00011779,2]
[323403263,1713971469106,-776.48,0.00011779,2]
[323403264,1713971469116,-500.0,0.00011779,2]
[323403265,1713971469125,-500.0,0.00011779,2]
[323403266,1713971469135,-500.0,0.00011779,2]
[323403267,1713971469145,-500.0,0.00011779,2]
[323403268,1713971469154,-500.0,0.00011779,2]
[323403269,1713971469163,-558.65,0.00011779,2]
[323403270,1713971469173,-500.0,0.00011779,2]
[323403271,1713971469183,-500.0,0.00011779,2]
[323403272,1713971469193,-500.0,0.00011779,2]
[323403273,1713971469203,-500.0,0.00011779,2]
[323403274,1713971469212,-500.0,0.00011779,2]
[323403275,1713971469222,-500.0,0.00011779,2]
[323403276,1713971469231,-500.0,0.00011779,2]
[323403277,1713971469240,-500.0,0.00011779,2]
[323403278,1713971469250,-500.0,0.00011779,2]
[323403279,1713971469259,-500.0,0.00011779,2]
[323403280,1713971469274,-500.0,0.00011779,2]
[323403281,1713971469284,-500.0,0.00011779,2]
[323403282,1713971469294,-500.0,0.00011779,2]
[323403283,1713971469305,-500.0,0.00011779,2]
[323403284,1713971469315,-500.0,0.00011779,2]
[323403285,1713971469328,-500.0,0.00011779,2]
[323403286,1713971469338,-1172.99,0.00011779,2]
[323403287,1713971469347,-500.0,0.00011779,2]
[323403288,1713971469358,-531.5,0.00011779,2]
[323403289,1713971469369,-500.0,0.00011779,2]
[323403290,1713971469379,-500.0,0.00011779,2]
[323403291,1713971469389,-500.0,0.00011779,2]
[323403292,1713971469400,-500.0,0.00011779,2]
[323403293,1713971469411,-500.0,0.00011779,2]
[323403294,1713971469422,-500.0,0.00011779,2]
[323403295,1713971469432,-500.0,0.00011779,2]
[323403296,1713971469441,-500.0,0.00011779,2]
[323403297,1713971469450,-500.0,0.00011779,2]
[323403298,1713971469460,-1195.92,0.00011779,2]
[323403299,1713971469470,-500.0,0.00011779,2]
[323403300,1713971469479,-535.27,0.00011779,2]
[323403301,1713971469489,-500.0,0.00011779,2]
[323403302,1713971469499,-500.0,0.00011779,2]
[323403303,1713971469509,-500.0,0.00011779,2]
[323403304,1713971469520,-500.0,0.00011779,2]
[323403305,1713971469530,-500.0,0.00011779,2]
[323403306,1713971469540,-500.0,0.00011779,2]
[323403307,1713971469550,-500.0,0.00011779,2]
[323403308,1713971469559,-500.0,0.00011779,2]
[323403309,1713971469570,-500.0,0.00011779,2]
[323403310,1713971469580,-500.0,0.00011779,2]
[323403311,1713971469591,-500.0,0.00011779,2]
[323403312,1713971469601,-500.0,0.00011779,2]
[323403313,1713971469611,-500.0,0.00011779,2]
[323403314,1713971469622,-500.0,0.00011779,2]
[323403315,1713971469633,-500.0,0.00011779,2]
[323403316,1713971469644,-500.0,0.00011779,2]
[323403317,1713971469654,-500.0,0.00011779,2]
[323403318,1713971469665,-500.0,0.00011779,2]
[323403319,1713971469675,-556.49,0.00011779,2]
[323403320,1713971469685,-500.0,0.00011779,2]
[323403321,1713971469695,-550.13,0.00011779,2]
[323403322,1713971469706,-500.0,0.00011779,2]
[323403323,1713971469716,-500.0,0.00011779,2]
[323403324,1713971469727,-180.36,0.00011779,2]
[323403325,1713971469737,-500.0,0.00011779,2]
[323403326,1713971469747,-500.0,0.00011779,2]
[323403327,1713971469758,-500.0,0.00011779,2]
[323403328,1713971469771,-500.0,0.00011779,2]
[323403329,1713971469780,-500.0,0.00011779,2]
[323403330,1713971469790,-500.0,0.00011779,2]
[323403331,1713971469800,-500.0,0.00011779,2]
[323403332,1713971469810,-500.0,0.00011779,2]
[323403333,1713971469821,-500.0,0.00011779,2]
[323403334,1713971469831,-500.0,0.00011779,2]
[323403335,1713971469841,-500.0,0.00011779,2]
[323403336,1713971469851,-500.0,0.00011779,2]
[323403337,1713971469862,-500.0,0.00011779,2]
[323403338,1713971469872,-500.0,0.00011779,2]
[323403339,1713971469882,-500.0,0.00011779,2]
[323403340,1713971469892,-500.0,0.00011779,2]
[323403341,1713971469902,-500.0,0.00011779,2]
[323403342,1713971469912,-500.0,0.00011779,2]
[323403343,1713971469922,-500.0,0.00011779,2]
[323403344,1713971469931,-500.0,0.00011779,2]
[323403345,1713971469942,-500.0,0.00011779,2]
[323403346,1713971469952,-500.0,0.00011779,2]
[323403347,1713971469961,-500.0,0.00011779,2]
[323403348,1713971469971,-500.0,0.00011779,2]
[323403349,1713971469982,-500.0,0.00011779,2]
[323403350,1713971469991,-500.0,0.00011779,2]
[323403351,1713971470002,-500.0,0.00011779,2]
[323403352,1713971470011,-500.0,0.00011779,2]
[323403353,1713971470023,-500.0,0.00011779,2]
[323403354,1713971470034,-500.0,0.00011779,2]
[323403355,1713971470044,-592.76,0.00011779,2]
[323403356,1713971470054,-525.35831011,0.00011779,2]
[323403357,1713971470063,-500.0,0.00011779,2]
[323403358,1713971470074,-500.0,0.00011779,2]
[323403359,1713971470084,-500.0,0.00011779,2]
[323403360,1713971470094,-500.0,0.00011779,2]
[323403361,1713971470105,-500.0,0.00011779,2]
[323403362,1713971470114,-500.0,0.00011779,2]
[323403363,1713971470124,-500.0,0.00011779,2]
[323403364,1713971470134,-500.0,0.00011779,2]
[323403365,1713971470144,-500.0,0.00011779,2]
[323403366,1713971470153,-500.0,0.00011779,2]
[323403367,1713971470163,-500.0,0.00011779,2]
[323403368,1713971470173,-500.0,0.00011779,2]
[323403369,1713971470183,-1027.63,0.00011779,2]
[323403370,1713971470193,-500.0,0.00011779,2]
[323403371,1713971470203,-500.0,0.00011779,2]
[323403372,1713971470213,-500.0,0.00011779,2]
[323403373,1713971470223,-500.0,0.00011779,2]
[323403374,1713971470234,-500.0,0.00011779,2]
[323403375,1713971470244,-500.0,0.00011779,2]
[323403376,1713971470254,-647.0,0.00011779,2]
[323403377,1713971470264,-500.0,0.00011779,2]
[323403378,1713971470278,-500.0,0.00011779,2]
[323403379,1713971470288,-500.0,0.00011779,2]
[323403380,1713971470297,-762.98,0.00011779,2]
[323403381,1713971470307,-500.0,0.00011779,2]
[323403382,1713971470319,-500.0,0.00011779,2]
[323403383,1713971470332,-649.92810672,0.00011779,2]
[323403384,1713971470341,-500.0,0.00011779,2]
[323403385,1713971470351,-500.0,0.00011779,2]
[323403386,1713971470611,-500.0,0.00011779,2]
[323403387,1713971470627,-500.0,0.00011779,2]
[323403388,1713971470638,-500.0,0.00011779,2]
[323403389,1713971470647,-500.0,0.00011779,2]
[323403390,1713971470658,-500.0,0.00011779,2]
[323403391,1713971470667,-500.0,0.00011779,2]
[323403392,1713971470678,-500.0,0.00011779,2]
[323403393,1713971470688,-885.68,0.00011779,2]
[323403394,1713971470697,-1123.38,0.00011779,2]
[323403395,1713971470707,-519.32,0.00011779,2]
[323403396,1713971470718,-500.0,0.00011779,2]
[323403397,1713971470729,-500.0,0.00011779,2]
[323403398,1713971470740,-500.0,0.00011779,2]
[323403399,1713971470750,-500.0,0.00011779,2]
[323403400,1713971470760,-646.14,0.00011779,2]
[323403401,1713971470774,-500.0,0.0001178,2]
[323403402,1713971470797,-500.0,0.0001178,2]
[323403403,1713971470820,-632.41,0.0001178,2]
[323403404,1713971470843,-938.45,0.0001178,2]
[323403405,1713971470866,-503.65097698,0.0001178,2]
[323403406,1713971470890,-500.0,0.0001178,2]
[323403407,1713971470913,-500.0,0.0001178,2]
[323403408,1713971470934,-500.0,0.0001178,2]
[323403409,1713971470959,-500.0,0.0001178,2]
[323403410,1713971470977,-489.25,0.0001178,2]
[323403411,1713971470988,-500.0,0.0001178,2]
[323403412,1713971470998,-500.0,0.0001178,2]
[323403413,1713971471008,-1522.84,0.0001178,2]
[323403414,1713971471020,-500.0,0.0001178,2]
[323403415,1713971471030,-500.0,0.0001178,2]
[323403416,1713971471040,-167.2192648,0.0001178,2]
[323403417,1713971471050,-500.0,0.0001178,2]
[323403418,1713971471060,-500.0,0.0001178,2]
[323403419,1713971471070,-500.0,0.0001178,2]
[323403420,1713971471081,-500.0,0.0001178,2]
[323403421,1713971471091,-500.0,0.0001178,2]
[323403422,1713971471101,-500.0,0.0001178,2]
[323403423,1713971471111,-500.0,0.0001178,2]
[323403424,1713971471121,-500.0,0.0001178,2]
[323403425,1713971471131,-500.0,0.0001178,2]
[323403426,1713971471141,-500.0,0.0001178,2]
[323403427,1713971471150,-500.0,0.0001178,2]
[323403428,1713971471160,-703.95,0.0001178,2]
[323403429,1713971471169,-500.0,0.0001178,2]
[323403430,1713971471179,-500.0,0.0001178,2]
[323403431,1713971471189,-500.0,0.0001178,2]
[323403432,1713971471199,-500.0,0.0001178,2]
[323403433,1713971471208,-500.0,0.0001178,2]
[323403434,1713971471218,-500.0,0.0001178,2]
[323403435,1713971471228,-750.77,0.0001178,2]
[323403436,1713971471237,-500.0,0.0001178,2]
[323403437,1713971471247,-500.0,0.0001178,2]
[323403438,1713971471257,-500.0,0.0001178,2]
[323403439,1713971471267,-500.0,0.0001178,2]
[323403440,1713971471277,-571.84,0.0001178,2]
[323403441,1713971471287,-801.18,0.0001178,2]
[323403442,1713971471296,-500.0,0.0001178,2]
[323403443,1713971471305,-500.0,0.0001178,2]
[323403444,1713971471315,-500.0,0.0001178,2]
[323403445,1713971471327,-506.76586592,0.0001178,2]
[323403446,1713971471336,-571.87,0.0001178,2]
[323403447,1713971471345,-757.62,0.0001178,2]
[323403448,1713971471355,-1868.55,0.0001178,2]
[323403449,1713971471365,-500.0,0.0001178,2]
[323403450,1713971471374,-3047.41,0.0001178,2]
[323403451,1713971471384,-500.0,0.0001178,2]
[323403452,1713971471393,-960.72,0.0001178,2]
[323403453,1713971471403,-500.0,0.0001178,2]
[323403454,1713971471413,-738.26,0.0001178,2]
[323403455,1713971471422,-500.0,0.0001178,2]
[323403456,1713971471432,-632.55,0.0001178,2]
[323403457,1713971471442,-500.0,0.0001178,2]
[323403458,1713971471452,-500.0,0.0001178,2]
[323403459,1713971471461,-500.0,0.0001178,2]
[323403460,1713971471470,-500.0,0.0001178,2]
[323403461,1713971471480,-500.0,0.0001178,2]
[323403462,1713971471489,-500.0,0.0001178,2]
[323403463,1713971471499,-500.0,0.0001178,2]
[323403464,1713971471510,-500.0,0.0001178,2]
[323403465,1713971471520,-1231.81,0.0001178,2]
[323403466,1713971471530,-500.0,0.0001178,2]
[323403467,1713971471540,-432.87,0.0001178,2]
[323403468,1713971471550,-4414.65,0.0001178,2]
[323403469,1713971471560,-634.1,0.0001178,2]
[323403470,1713971471570,-500.0,0.0001178,2]
[323403471,1713971471581,-500.0,0.0001178,2]
[323403472,1713971471591,-500.0,0.0001178,2]
[323403473,1713971471601,-500.0,0.0001178,2]
[323403474,1713971471610,-1512.32,0.0001178,2]
[323403475,1713971471620,-500.0,0.0001178,2]
[323403476,1713971471630,-500.0,0.0001178,2]
[323403477,1713971471639,-500.0,0.0001178,2]
[323403478,1713971471649,-1160.08,0.0001178,2]
[323403479,1713971471658,-297.3,0.0001178,2]
[323403480,1713971471669,-1014.83,0.0001178,2]
[323403481,1713971471679,-500.0,0.0001178,2]
[323403482,1713971471689,-500.0,0.0001178,2]
[323403483,1713971471699,-500.0,0.0001178,2]
[323403484,1713971471708,-500.0,0.0001178,2]
[323403485,1713971471717,-500.0,0.0001178,2]
[323403486,1713971471727,-500.0,0.0001178,2]
[323403487,1713971471737,-500.0,0.0001178,2]
[323403488,1713971471747,-500.0,0.0001178,2]
[323403489,1713971471757,-500.0,0.0001178,2]
[323403490,1713971471769,-500.0,0.0001178,2]
[323403491,1713971471779,-554.94,0.0001178,2]
[323403492,1713971471789,-981.42,0.0001178,2]
[323403493,1713971471800,-1266.64,0.0001178,2]
[323403494,1713971471810,-500.0,0.0001178,2]
[323403495,1713971471820,-2618.92,0.0001178,2]
[323403496,1713971471830,-500.0,0.0001178,2]
[323403497,1713971471840,-500.0,0.0001178,2]
[323403498,1713971471850,-500.0,0.0001178,2]
[323403499,1713971471860,-834.92,0.0001178,2]
[323403500,1713971471870,-500.0,0.0001178,2]
[323403501,1713971471880,-928.86,0.0001178,2]
[323403502,1713971471890,-500.0,0.0001178,2]
[323403503,1713971471900,-500.0,0.0001178,2]
[323403504,1713971471911,-500.0,0.0001178,2]
[323403505,1713971471921,-500.0,0.0001178,2]
[323403506,1713971471932,-2388.92,0.0001178,2]
[323403507,1713971471942,-500.0,0.0001178,2]
[323403508,1713971471953,-500.0,0.0001178,2]
[323403509,1713971471964,-500.0,0.0001178,2]
[323403510,1713971471974,-500.0,0.0001178,2]
[323403511,1713971471984,-500.0,0.0001178,2]
[323403512,1713971471995,-500.0,0.0001178,2]
[323403513,1713971472005,-500.0,0.0001178,2]
[323403514,1713971472015,-500.0,0.0001178,2]
[323403515,1713971472033,-500.0,0.0001178,2]
[323403516,1713971472043,-500.0,0.0001178,2]
[323403517,1713971472053,-583.43,0.0001178,2]
[323403518,1713971472063,-500.0,0.0001178,2]
[323403519,1713971472073,-500.0,0.0001178,2]
[323403520,1713971472084,-500.0,0.0001178,2]
[323403521,1713971472094,-500.0,0.0001178,2]
[323403522,1713971472104,-1814.7,0.0001178,2]
[323403523,1713971472114,-491.24694429,0.0001178,2]
[323403524,1713971472124,-4566.79,0.0001178,2]
[323403525,1713971472133,-500.0,0.0001178,2]
[323403526,1713971472144,-500.0,0.0001178,2]
[323403527,1713971472153,-500.0,0.0001178,2]
[323403528,1713971472163,-500.0,0.0001178,2]
[323403529,1713971472172,-500.0,0.0001178,2]
[323403530,1713971472182,-500.0,0.0001178,2]
[323403531,1713971472192,-500.0,0.0001178,2]
[323403532,1713971472201,-500.0,0.0001178,2]
[323403533,1713971472211,-500.0,0.0001178,2]
[323403534,1713971472220,-500.0,0.0001178,2]
[323403535,1713971472230,-1008.59,0.0001178,2]
[323403536,1713971472240,-196.77,0.0001178,2]
[323403537,1713971472249,-500.0,0.0001178,2]
[323403538,1713971472258,-500.0,0.0001178,2]
[323403539,1713971472268,-657.96,0.0001178,2]
[323403540,1713971472281,-500.0,0.0001178,2]
[323403541,1713971472292,-500.0,0.0001178,2]
[323403542,1713971472301,-500.0,0.0001178,2]
[323403543,1713971472310,-500.0,0.0001178,2]
[323403544,1713971472320,-1435.34,0.0001178,2]
[323403545,1713971472333,-500.0,0.0001178,2]
[323403546,1713971472343,-2224.61,0.0001178,2]
[323403547,1713971472352,-500.0,0.0001178,2]
[323403548,1713971472362,-4364.47,0.0001178,2]
[323403549,1713971472371,-349.32,0.0001178,2]
[323403550,1713971472382,-500.0,0.0001178,2]
[323403551,1713971472391,-500.0,0.0001178,2]
[323403552,1713971472401,-277.38,0.0001178,2]
[323403553,1713971472412,-620.67,0.0001178,2]
[323403554,1713971472422,-500.0,0.0001178,2]
[323403555,1713971472431,-500.0,0.0001178,2]